[Event "Titled Tuesday Blitz December 7 2021"]
[White "Bortnyk, Olexandr"]
[Black "Sliwicki, Damian"]
[WhiteFideId "14120828"]
[BlackFideId "1127128"]
[WhiteElo "2929"]
[BlackElo "2480"]
[Result "1-0"]
[Round "01"]
[TimeControl "180+1"]
[Date "2021.12.07"]
[WhiteClock "0:00:25"]
[BlackClock "0:00:22"]

1. e4 {[%clk 0:03:00]}  c5 {[%clk 0:02:58]} 2. c3 {[%clk 0:02:56]}  g6 {[%clk 0:02:52]} 3. d4 {[%clk 0:02:56]}  cxd4 {[%clk 0:02:53]} 4. cxd4 {[%clk 0:02:56]}  Bg7 {[%clk 0:02:47]} 5. Nc3 {[%clk 0:02:49]}  a6 {[%clk 0:02:45]} 6. Nf3 {[%clk 0:02:45]}  d5 {[%clk 0:02:45]} 7. a3 {[%clk 0:02:46]}  dxe4 {[%clk 0:02:40]} 8. Nxe4 {[%clk 0:02:42]}  Nf6 {[%clk 0:02:34]} 9. Nxf6+ {[%clk 0:02:28]}  Bxf6 {[%clk 0:02:33]} 10. Bh6 {[%clk 0:02:27]}  Nc6 {[%clk 0:02:25]} 11. d5 {[%clk 0:02:23]}  Ne5 {[%clk 0:02:25]} 12. Be2 {[%clk 0:02:17]}  Qa5+ {[%clk 0:02:10]} 13. b4 {[%clk 0:02:16]}  Nxf3+ {[%clk 0:02:10]} 14. Bxf3 {[%clk 0:02:12]}  Qb5 {[%clk 0:02:11]} 15. Rc1 {[%clk 0:02:05]}  Bd7 {[%clk 0:02:07]} 16. Be2 {[%clk 0:01:54]}  Qb6 {[%clk 0:02:05]} 17. O-O {[%clk 0:01:46]}  g5 {[%clk 0:02:01]} 18. Bg4 {[%clk 0:01:40]}  Bxg4 {[%clk 0:01:54]} 19. Qxg4 {[%clk 0:01:39]}  Rg8 {[%clk 0:01:47]} 20. Rc8+ {[%clk 0:01:34]}  Rxc8 {[%clk 0:01:46]} 21. Qxc8+ {[%clk 0:01:35]}  Qd8 {[%clk 0:01:47]} 22. Qxb7 {[%clk 0:01:35]}  Rg6 {[%clk 0:01:41]} 23. Rc1 {[%clk 0:01:35]}  Bc3 {[%clk 0:01:12]} 24. Rxc3 {[%clk 0:01:27]}  Rb6 {[%clk 0:01:12]} 25. Qc7 {[%clk 0:00:37]}  Qxc7 {[%clk 0:00:58]} 26. Rxc7 {[%clk 0:00:38]}  Rxh6 {[%clk 0:00:58]} 27. Rc6 {[%clk 0:00:36]}  Rh4 {[%clk 0:00:50]} 28. Rxa6 {[%clk 0:00:31]}  Rd4 {[%clk 0:00:50]} 29. Kf1 {[%clk 0:00:32]}  Rxd5 {[%clk 0:00:50]} 30. a4 {[%clk 0:00:31]}  Kd8 {[%clk 0:00:39]} 31. b5 {[%clk 0:00:30]}  Kc7 {[%clk 0:00:40]} 32. Ra7+ {[%clk 0:00:30]}  Kb6 {[%clk 0:00:40]} 33. Rxe7 {[%clk 0:00:30]}  Rf5 {[%clk 0:00:40]} 34. Re4 {[%clk 0:00:24]}  Rc5 {[%clk 0:00:37]} 35. g4 {[%clk 0:00:23]}  f5 {[%clk 0:00:35]} 36. Re6+ {[%clk 0:00:23]}  Kb7 {[%clk 0:00:26]} 37. gxf5 {[%clk 0:00:22]}  Rxf5 {[%clk 0:00:27]} 38. Re7+ {[%clk 0:00:23]}  Kb6 {[%clk 0:00:27]} 39. Rxh7 {[%clk 0:00:24]}  Rf4 {[%clk 0:00:26]} 40. Rh6+ {[%clk 0:00:24]}  Kb7 {[%clk 0:00:21]} 41. a5 {[%clk 0:00:24]}  Rb4 {[%clk 0:00:20]} 42. Rg6 {[%clk 0:00:23]}  Rxb5 {[%clk 0:00:20]} 43. Rb6+ {[%clk 0:00:19]}  Rxb6 {[%clk 0:00:20]} 44. axb6 {[%clk 0:00:20]}  Kxb6 {[%clk 0:00:21]} 45. Kg2 {[%clk 0:00:21]}  Kc5 {[%clk 0:00:21]} 46. Kg3 {[%clk 0:00:22]}  Kd5 {[%clk 0:00:22]} 47. Kg4 {[%clk 0:00:23]}  Ke4 {[%clk 0:00:22]} 48. Kxg5 {[%clk 0:00:24]}  Kf3 {[%clk 0:00:23]} 49. h4 {[%clk 0:00:24]}  Kxf2 {[%clk 0:00:22]} 50. h5 {[%clk 0:00:25]} 1-0


[Site "https://www.chess.com"]

[Event "Titled Tuesday Blitz December 7 2021"]
[White "Buchenau, Frank"]
[Black "Khanin, Semen"]
[WhiteFideId "4604350"]
[BlackFideId "4111990"]
[WhiteElo "2437"]
[BlackElo "2767"]
[Result "0-1"]
[Round "01"]
[TimeControl "180+1"]
[Date "2021.12.07"]
[WhiteClock "0:00:01"]
[BlackClock "0:00:26"]

1. e4 {[%clk 0:02:59]}  c5 {[%clk 0:03:00]} 2. Nf3 {[%clk 0:02:59]}  e6 {[%clk 0:03:00]} 3. d4 {[%clk 0:02:58]}  cxd4 {[%clk 0:03:01]} 4. Nxd4 {[%clk 0:02:59]}  Nc6 {[%clk 0:03:01]} 5. Nc3 {[%clk 0:02:58]}  Qc7 {[%clk 0:03:02]} 6. Be3 {[%clk 0:02:56]}  a6 {[%clk 0:03:02]} 7. Bd3 {[%clk 0:02:55]}  b5 {[%clk 0:03:02]} 8. Nxc6 {[%clk 0:02:55]}  Qxc6 {[%clk 0:03:02]} 9. a3 {[%clk 0:02:53]}  Bb7 {[%clk 0:03:02]} 10. O-O {[%clk 0:02:53]}  Bc5 {[%clk 0:03:01]} 11. Bxc5 {[%clk 0:02:31]}  Qxc5 {[%clk 0:03:01]} 12. Kh1 {[%clk 0:02:30]}  Nf6 {[%clk 0:03:00]} 13. f4 {[%clk 0:02:27]}  h5 {[%clk 0:02:59]} 14. Qe2 {[%clk 0:02:23]}  d6 {[%clk 0:02:56]} 15. Qf2 {[%clk 0:02:18]}  Qxf2 {[%clk 0:02:52]} 16. Rxf2 {[%clk 0:02:18]}  Rc8 {[%clk 0:02:52]} 17. Re1 {[%clk 0:02:16]}  Ke7 {[%clk 0:02:48]} 18. Kg1 {[%clk 0:02:16]}  Rc5 {[%clk 0:02:46]} 19. Rfe2 {[%clk 0:02:11]}  e5 {[%clk 0:02:40]} 20. Rf1 {[%clk 0:02:06]}  Rhc8 {[%clk 0:02:37]} 21. fxe5 {[%clk 0:02:03]}  dxe5 {[%clk 0:02:37]} 22. Nd1 {[%clk 0:01:56]}  Ne8 {[%clk 0:02:20]} 23. Ne3 {[%clk 0:01:54]}  Nd6 {[%clk 0:02:20]} 24. Nf5+ {[%clk 0:01:52]}  Nxf5 {[%clk 0:02:20]} 25. Rxf5 {[%clk 0:01:52]}  g6 {[%clk 0:02:20]} 26. Rf1 {[%clk 0:01:49]}  f6 {[%clk 0:02:20]} 27. Ref2 {[%clk 0:01:48]}  R8c6 {[%clk 0:02:20]} 28. g3 {[%clk 0:01:42]}  Rd6 {[%clk 0:02:19]} 29. h3 {[%clk 0:01:39]}  a5 {[%clk 0:02:17]} 30. b4 {[%clk 0:01:32]}  axb4 {[%clk 0:02:17]} 31. axb4 {[%clk 0:01:31]}  Rc3 {[%clk 0:02:17]} 32. Ra1 {[%clk 0:01:29]}  Ra6 {[%clk 0:02:13]} 33. Rxa6 {[%clk 0:01:20]}  Bxa6 {[%clk 0:02:13]} 34. Rf1 {[%clk 0:01:17]}  Ra3 {[%clk 0:02:09]} 35. Kf2 {[%clk 0:01:15]}  Bc8 {[%clk 0:01:53]} 36. h4 {[%clk 0:01:13]}  Bd7 {[%clk 0:01:52]} 37. Ke3 {[%clk 0:01:07]}  Ra4 {[%clk 0:01:47]} 38. c3 {[%clk 0:01:01]}  Ra2 {[%clk 0:01:45]} 39. Rf2 {[%clk 0:01:00]}  Ra1 {[%clk 0:01:45]} 40. Rc2 {[%clk 0:00:56]}  f5 {[%clk 0:01:43]} 41. exf5 {[%clk 0:00:54]}  gxf5 {[%clk 0:01:43]} 42. Be2 {[%clk 0:00:52]}  Be8 {[%clk 0:01:40]} 43. c4 {[%clk 0:00:36]}  Ra3+ {[%clk 0:01:39]} 44. Kf2 {[%clk 0:00:33]}  bxc4 {[%clk 0:01:40]} 45. Rxc4 {[%clk 0:00:31]}  Ra2 {[%clk 0:01:33]} 46. Ke3 {[%clk 0:00:31]}  Rxe2+ {[%clk 0:01:25]} 47. Kxe2 {[%clk 0:00:31]}  Bb5 {[%clk 0:01:25]} 48. Kd3 {[%clk 0:00:30]}  Kd6 {[%clk 0:01:05]} 49. Kc3 {[%clk 0:00:29]}  Bxc4 {[%clk 0:01:06]} 50. Kxc4 {[%clk 0:00:30]}  Kc6 {[%clk 0:01:06]} 51. Kc3 {[%clk 0:00:18]}  Kd5 {[%clk 0:01:03]} 52. Kd3 {[%clk 0:00:17]}  e4+ {[%clk 0:01:03]} 53. Kc3 {[%clk 0:00:17]}  Kc6 {[%clk 0:00:57]} 54. Kc4 {[%clk 0:00:17]}  Kb6 {[%clk 0:00:57]} 55. Kd4 {[%clk 0:00:14]}  Kb5 {[%clk 0:00:56]} 56. Kc3 {[%clk 0:00:14]}  Kb6 {[%clk 0:00:48]} 57. Kc4 {[%clk 0:00:09]}  Kc6 {[%clk 0:00:48]} 58. b5+ {[%clk 0:00:07]}  Kd6 {[%clk 0:00:44]} 59. Kd4 {[%clk 0:00:06]}  Kc7 {[%clk 0:00:45]} 60. Kc3 {[%clk 0:00:04]}  Kb7 {[%clk 0:00:44]} 61. Kc4 {[%clk 0:00:03]}  Kc7 {[%clk 0:00:34]} 62. Kb4 {[%clk 0:00:03]}  Kd6 {[%clk 0:00:32]} 63. Kc4 {[%clk 0:00:03]}  Ke5 {[%clk 0:00:25]} 64. Kc5 {[%clk 0:00:03]}  e3 {[%clk 0:00:25]} 65. b6 {[%clk 0:00:01]}  e2 {[%clk 0:00:25]} 66. b7 {[%clk 0:00:01]}  e1=Q {[%clk 0:00:26]} 67. b8=Q+ {[%clk 0:00:01]}  Kf6 {[%clk 0:00:26]} 0-1


[Site "https://www.chess.com"]

[Event "Titled Tuesday Blitz December 7 2021"]
[White "Buscar, Michael"]
[Black "Pakleza, Zbigniew"]
[WhiteFideId "2603616"]
[BlackFideId "1119290"]
[WhiteElo "2402"]
[BlackElo "2715"]
[Result "0-1"]
[Round "01"]
[TimeControl "180+1"]
[Date "2021.12.07"]
[WhiteClock "0:00:10"]
[BlackClock "0:00:15"]

1. d4 {[%clk 0:03:00]}  d6 {[%clk 0:02:49]} 2. c4 {[%clk 0:03:00]}  e5 {[%clk 0:02:49]} 3. e3 {[%clk 0:02:59]}  Nd7 {[%clk 0:02:48]} 4. Nf3 {[%clk 0:02:58]}  Ngf6 {[%clk 0:02:49]} 5. dxe5 {[%clk 0:02:53]}  dxe5 {[%clk 0:02:48]} 6. Be2 {[%clk 0:02:51]}  Be7 {[%clk 0:02:47]} 7. b3 {[%clk 0:02:52]}  c6 {[%clk 0:02:43]} 8. Bb2 {[%clk 0:02:51]}  Qc7 {[%clk 0:02:43]} 9. O-O {[%clk 0:02:46]}  O-O {[%clk 0:02:43]} 10. Qc2 {[%clk 0:02:45]}  Re8 {[%clk 0:02:37]} 11. Rd1 {[%clk 0:02:43]}  Bf8 {[%clk 0:02:35]} 12. Nbd2 {[%clk 0:02:43]}  a5 {[%clk 0:02:34]} 13. a3 {[%clk 0:02:40]}  Nc5 {[%clk 0:02:28]} 14. b4 {[%clk 0:02:29]}  axb4 {[%clk 0:02:20]} 15. axb4 {[%clk 0:02:30]}  Rxa1 {[%clk 0:02:20]} 16. Bxa1 {[%clk 0:02:31]}  Na6 {[%clk 0:02:20]} 17. Qb2 {[%clk 0:02:17]}  e4 {[%clk 0:01:49]} 18. Ng5 {[%clk 0:01:34]}  h6 {[%clk 0:01:30]} 19. Nh3 {[%clk 0:01:34]}  Bxh3 {[%clk 0:01:25]} 20. gxh3 {[%clk 0:01:34]}  Nxb4 {[%clk 0:01:20]} 21. Kh1 {[%clk 0:01:26]}  Kh8 {[%clk 0:01:01]} 22. Rg1 {[%clk 0:01:22]}  Qd7 {[%clk 0:00:57]} 23. Rg3 {[%clk 0:00:51]}  Nd3 {[%clk 0:00:51]} 24. Bxd3 {[%clk 0:00:49]}  Qxd3 {[%clk 0:00:49]} 25. Nb3 {[%clk 0:00:39]}  Qd1+ {[%clk 0:00:30]} 26. Kg2 {[%clk 0:00:29]}  Ra8 {[%clk 0:00:28]} 27. h4 {[%clk 0:00:17]}  Qh5 {[%clk 0:00:25]} 28. Kh3 {[%clk 0:00:16]}  Qf5+ {[%clk 0:00:25]} 29. Kg2 {[%clk 0:00:16]}  Nh5 {[%clk 0:00:23]} 30. Nd4 {[%clk 0:00:14]}  Qf6 {[%clk 0:00:17]} 31. Rg4 {[%clk 0:00:13]}  c5 {[%clk 0:00:16]} 32. Nb5 {[%clk 0:00:11]}  Qf3+ {[%clk 0:00:15]} 33. Kf1 {[%clk 0:00:09]}  Qd1+ {[%clk 0:00:15]} 34. Kg2 {[%clk 0:00:09]}  Qxg4+ {[%clk 0:00:15]} 35. Kf1 {[%clk 0:00:10]}  Qd1+ {[%clk 0:00:16]} 36. Kg2 {[%clk 0:00:10]}  Rxa1 {[%clk 0:00:15]} 0-1


[Site "https://www.chess.com"]

[Event "Titled Tuesday Blitz December 7 2021"]
[White "Colbow, Collin"]
[Black "Papasimakopoulos, Alexandros"]
[WhiteFideId "16201132"]
[BlackFideId "4244125"]
[WhiteElo "2137"]
[BlackElo "2394"]
[Result "0-1"]
[Round "01"]
[TimeControl "180+1"]
[Date "2021.12.07"]
[WhiteClock "0:00:03"]
[BlackClock "0:00:19"]

1. e4 {[%clk 0:03:00]}  e6 {[%clk 0:02:57]} 2. d4 {[%clk 0:03:00]}  d5 {[%clk 0:02:53]} 3. Nd2 {[%clk 0:03:01]}  Nf6 {[%clk 0:02:52]} 4. e5 {[%clk 0:03:00]}  Nfd7 {[%clk 0:02:53]} 5. Bd3 {[%clk 0:03:01]}  c5 {[%clk 0:02:32]} 6. c3 {[%clk 0:03:01]}  Nc6 {[%clk 0:02:31]} 7. Ne2 {[%clk 0:03:01]}  cxd4 {[%clk 0:02:30]} 8. cxd4 {[%clk 0:03:02]}  f6 {[%clk 0:02:31]} 9. exf6 {[%clk 0:03:03]}  Nxf6 {[%clk 0:02:29]} 10. O-O {[%clk 0:03:03]}  Bd6 {[%clk 0:02:29]} 11. Nf3 {[%clk 0:03:03]}  Qc7 {[%clk 0:02:28]} 12. h3 {[%clk 0:03:01]}  O-O {[%clk 0:02:28]} 13. Be3 {[%clk 0:03:01]}  Bd7 {[%clk 0:02:27]} 14. Re1 {[%clk 0:03:02]}  Be8 {[%clk 0:02:26]} 15. Ng5 {[%clk 0:03:01]}  Bf7 {[%clk 0:02:26]} 16. Rc1 {[%clk 0:03:00]}  Rae8 {[%clk 0:02:26]} 17. a3 {[%clk 0:02:41]}  h6 {[%clk 0:02:21]} 18. Nxf7 {[%clk 0:02:34]}  Qxf7 {[%clk 0:02:22]} 19. b4 {[%clk 0:02:30]}  e5 {[%clk 0:02:22]} 20. b5 {[%clk 0:02:25]}  Nxd4 {[%clk 0:02:21]} 21. Nxd4 {[%clk 0:02:26]}  exd4 {[%clk 0:02:22]} 22. Bxd4 {[%clk 0:02:27]}  Ne4 {[%clk 0:02:12]} 23. Bxe4 {[%clk 0:01:55]}  dxe4 {[%clk 0:02:11]} 24. Be3 {[%clk 0:01:55]}  Bxa3 {[%clk 0:01:53]} 25. Ra1 {[%clk 0:01:48]}  Bb4 {[%clk 0:01:53]} 26. Re2 {[%clk 0:01:42]}  b6 {[%clk 0:01:54]} 27. Qa4 {[%clk 0:01:32]}  Bc3 {[%clk 0:01:41]} 28. Rc1 {[%clk 0:01:18]}  Be5 {[%clk 0:01:38]} 29. Rc4 {[%clk 0:01:04]}  Qg6 {[%clk 0:01:27]} 30. Qxa7 {[%clk 0:00:58]}  Re6 {[%clk 0:01:22]} 31. Qb7 {[%clk 0:00:48]}  Kh8 {[%clk 0:01:12]} 32. Rc6 {[%clk 0:00:39]}  Rb8 {[%clk 0:01:08]} 33. Qd7 {[%clk 0:00:22]}  Rf6 {[%clk 0:01:00]} 34. Rec2 {[%clk 0:00:16]}  Rbf8 {[%clk 0:00:54]} 35. Bxb6 {[%clk 0:00:12]}  e3 {[%clk 0:00:54]} 36. Bxe3 {[%clk 0:00:11]}  Rxc6 {[%clk 0:00:53]} 37. Qxc6 {[%clk 0:00:09]}  Qf5 {[%clk 0:00:48]} 38. b6 {[%clk 0:00:09]}  Bb8 {[%clk 0:00:48]} 39. b7 {[%clk 0:00:08]}  Qe5 {[%clk 0:00:48]} 40. g3 {[%clk 0:00:07]}  Qa1+ {[%clk 0:00:38]} 41. Kg2 {[%clk 0:00:06]}  Qd1 {[%clk 0:00:37]} 42. Bf4 {[%clk 0:00:04]}  Ba7 {[%clk 0:00:25]} 43. Qc8 {[%clk 0:00:02]}  Kh7 {[%clk 0:00:20]} 44. Qxf8 {[%clk 0:00:02]}  Qxc2 {[%clk 0:00:21]} 45. b8=Q {[%clk 0:00:01]}  Qe4+ {[%clk 0:00:20]} 46. Kf1 {[%clk 0:00:01]}  Qd3+ {[%clk 0:00:19]} 47. Ke1 {[%clk 0:00:01]}  Qe4+ {[%clk 0:00:19]} 48. Kd2 {[%clk 0:00:02]}  Bxb8 {[%clk 0:00:20]} 49. Qxb8 {[%clk 0:00:01]}  Qd4+ {[%clk 0:00:20]} 50. Ke2 {[%clk 0:00:02]}  Qe4+ {[%clk 0:00:21]} 51. Be3 {[%clk 0:00:02]}  Qg2 {[%clk 0:00:20]} 52. Qf4 {[%clk 0:00:01]}  Qxh3 {[%clk 0:00:20]} 53. Qf3 {[%clk 0:00:02]}  Qc8 {[%clk 0:00:19]} 54. Qe4+ {[%clk 0:00:03]}  Kh8 {[%clk 0:00:19]} 55. f4 {[%clk 0:00:04]}  Qh3 {[%clk 0:00:18]} 56. Kf3 {[%clk 0:00:05]}  Qh1+ {[%clk 0:00:18]} 57. Kf2 {[%clk 0:00:03]}  Qxe4 {[%clk 0:00:19]} 0-1


[Site "https://www.chess.com"]

[Event "Titled Tuesday Blitz December 7 2021"]
[White "Cvetanovic, Uros"]
[Black "Bologan, Victor"]
[WhiteFideId "900672"]
[BlackFideId "13900048"]
[WhiteElo "2439"]
[BlackElo "2769"]
[Result "0-1"]
[Round "01"]
[TimeControl "180+1"]
[Date "2021.12.07"]
[WhiteClock "0:00:04"]
[BlackClock "0:00:54"]

1. Nc3 {[%clk 0:02:59]}  d5 {[%clk 0:02:57]} 2. e4 {[%clk 0:02:58]}  d4 {[%clk 0:02:57]} 3. Nce2 {[%clk 0:02:58]}  h5 {[%clk 0:02:55]} 4. Nf3 {[%clk 0:02:54]}  Nc6 {[%clk 0:02:51]} 5. h4 {[%clk 0:02:43]}  Bg4 {[%clk 0:02:47]} 6. Ng3 {[%clk 0:02:11]}  Qd7 {[%clk 0:02:38]} 7. d3 {[%clk 0:02:01]}  e6 {[%clk 0:02:30]} 8. Be2 {[%clk 0:02:00]}  Bd6 {[%clk 0:02:29]} 9. Nf1 {[%clk 0:01:54]}  Nge7 {[%clk 0:02:25]} 10. N1h2 {[%clk 0:01:39]}  Ng6 {[%clk 0:02:22]} 11. g3 {[%clk 0:01:30]}  O-O-O {[%clk 0:02:03]} 12. Bd2 {[%clk 0:01:19]}  f5 {[%clk 0:01:58]} 13. Ng5 {[%clk 0:01:17]}  Bxe2 {[%clk 0:01:52]} 14. Qxe2 {[%clk 0:01:17]}  f4 {[%clk 0:01:51]} 15. Nf1 {[%clk 0:00:33]}  fxg3 {[%clk 0:01:43]} 16. fxg3 {[%clk 0:00:32]}  Nb4 {[%clk 0:01:42]} 17. Bxb4 {[%clk 0:00:19]}  Bxb4+ {[%clk 0:01:41]} 18. Nd2 {[%clk 0:00:20]}  Ne5 {[%clk 0:01:37]} 19. O-O-O {[%clk 0:00:15]}  Rdf8 {[%clk 0:01:32]} 20. Rdf1 {[%clk 0:00:13]}  Rf6 {[%clk 0:01:32]} 21. Rxf6 {[%clk 0:00:06]}  gxf6 {[%clk 0:01:32]} 22. Ngf3 {[%clk 0:00:07]}  Ng4 {[%clk 0:01:31]} 23. a3 {[%clk 0:00:06]}  Bd6 {[%clk 0:01:22]} 24. Rg1 {[%clk 0:00:05]}  c5 {[%clk 0:01:16]} 25. Nc4 {[%clk 0:00:05]}  Bc7 {[%clk 0:01:16]} 26. Ncd2 {[%clk 0:00:04]}  f5 {[%clk 0:01:13]} 27. e5 {[%clk 0:00:03]}  Qd5 {[%clk 0:01:11]} 28. Nc4 {[%clk 0:00:02]}  b5 {[%clk 0:01:09]} 29. Nd6+ {[%clk 0:00:02]}  Bxd6 {[%clk 0:01:09]} 30. exd6 {[%clk 0:00:03]}  Qxd6 {[%clk 0:01:08]} 31. Ng5 {[%clk 0:00:04]}  Re8 {[%clk 0:01:03]} 32. Rf1 {[%clk 0:00:05]}  Qd5 {[%clk 0:01:02]} 33. Nf7 {[%clk 0:00:04]}  Re7 {[%clk 0:00:59]} 34. Nh6 {[%clk 0:00:05]}  Nxh6 {[%clk 0:00:56]} 35. Qxh5 {[%clk 0:00:04]}  Ng4 {[%clk 0:00:54]} 0-1


[Site "https://www.chess.com"]

[Event "Titled Tuesday Blitz December 7 2021"]
[White "Demin, Vladimir"]
[Black "Paravyan, David"]
[WhiteFideId "4167457"]
[BlackFideId "4194985"]
[WhiteElo "2499"]
[BlackElo "3009"]
[Result "0-1"]
[Round "01"]
[TimeControl "180+1"]
[Date "2021.12.07"]
[WhiteClock "0:00:01"]
[BlackClock "0:00:09"]

1. e4 {[%clk 0:03:00]}  e5 {[%clk 0:02:59]} 2. Nf3 {[%clk 0:03:00]}  Nc6 {[%clk 0:02:59]} 3. Bb5 {[%clk 0:03:01]}  a6 {[%clk 0:02:59]} 4. Bxc6 {[%clk 0:03:01]}  dxc6 {[%clk 0:02:58]} 5. O-O {[%clk 0:03:02]}  Bg4 {[%clk 0:02:56]} 6. h3 {[%clk 0:03:02]}  h5 {[%clk 0:02:54]} 7. d3 {[%clk 0:03:02]}  Qf6 {[%clk 0:02:53]} 8. Nbd2 {[%clk 0:02:57]}  Ne7 {[%clk 0:02:49]} 9. Nc4 {[%clk 0:02:56]}  Bxf3 {[%clk 0:02:48]} 10. Qxf3 {[%clk 0:02:57]}  Qxf3 {[%clk 0:02:48]} 11. gxf3 {[%clk 0:02:58]}  Ng6 {[%clk 0:02:48]} 12. Rd1 {[%clk 0:02:58]}  Be7 {[%clk 0:02:48]} 13. Kf1 {[%clk 0:02:58]}  O-O-O {[%clk 0:02:47]} 14. Ke2 {[%clk 0:02:59]}  Bf6 {[%clk 0:02:42]} 15. Be3 {[%clk 0:02:54]}  Nf8 {[%clk 0:02:41]} 16. c3 {[%clk 0:02:52]}  Ne6 {[%clk 0:02:42]} 17. a4 {[%clk 0:02:43]}  g6 {[%clk 0:02:36]} 18. b4 {[%clk 0:02:21]}  Rhe8 {[%clk 0:02:34]} 19. Na5 {[%clk 0:02:07]}  Bg5 {[%clk 0:02:25]} 20. Nb3 {[%clk 0:01:56]}  Rd6 {[%clk 0:02:21]} 21. Rg1 {[%clk 0:01:34]}  Nf4+ {[%clk 0:02:06]} 22. Bxf4 {[%clk 0:01:33]}  Bxf4 {[%clk 0:02:07]} 23. Rad1 {[%clk 0:01:33]}  b6 {[%clk 0:02:00]} 24. Nd2 {[%clk 0:01:02]}  Bxd2 {[%clk 0:01:52]} 25. Rxd2 {[%clk 0:00:57]}  Kb7 {[%clk 0:01:53]} 26. Ke3 {[%clk 0:00:56]}  Ra8 {[%clk 0:01:42]} 27. a5 {[%clk 0:00:46]}  Rad8 {[%clk 0:01:42]} 28. Rg5 {[%clk 0:00:45]}  Re6 {[%clk 0:01:36]} 29. d4 {[%clk 0:00:31]}  exd4+ {[%clk 0:01:32]} 30. cxd4 {[%clk 0:00:31]}  Rd5 {[%clk 0:01:28]} 31. Rxd5 {[%clk 0:00:16]}  cxd5 {[%clk 0:01:28]} 32. Rc2 {[%clk 0:00:12]}  g5 {[%clk 0:00:34]} 33. Kd3 {[%clk 0:00:12]}  Rf6 {[%clk 0:00:33]} 34. Ke3 {[%clk 0:00:11]}  Rf4 {[%clk 0:00:29]} 35. axb6 {[%clk 0:00:10]}  Kxb6 {[%clk 0:00:13]} 36. exd5 {[%clk 0:00:10]}  Rh4 {[%clk 0:00:11]} 37. Rc6+ {[%clk 0:00:10]}  Kb7 {[%clk 0:00:12]} 38. Rf6 {[%clk 0:00:10]}  Rxh3 {[%clk 0:00:12]} 39. Rxf7 {[%clk 0:00:10]}  Kb6 {[%clk 0:00:11]} 40. Rf6+ {[%clk 0:00:06]}  Kb7 {[%clk 0:00:10]} 41. Rf7 {[%clk 0:00:06]}  Kb6 {[%clk 0:00:11]} 42. Rf6+ {[%clk 0:00:06]}  Kb7 {[%clk 0:00:10]} 43. Ke4 {[%clk 0:00:06]}  Rh2 {[%clk 0:00:08]} 44. Rg6 {[%clk 0:00:05]}  Rxf2 {[%clk 0:00:08]} 45. Rxg5 {[%clk 0:00:05]}  h4 {[%clk 0:00:08]} 46. Rh5 {[%clk 0:00:05]}  Rh2 {[%clk 0:00:08]} 47. Rh7 {[%clk 0:00:05]}  Kb6 {[%clk 0:00:07]} 48. Rh6+ {[%clk 0:00:06]}  Kb5 {[%clk 0:00:07]} 49. Rh7 {[%clk 0:00:06]}  Rc2 {[%clk 0:00:07]} 50. Rxh4 {[%clk 0:00:05]}  Kxb4 {[%clk 0:00:08]} 51. Rh8 {[%clk 0:00:06]}  a5 {[%clk 0:00:08]} 52. Rb8+ {[%clk 0:00:06]}  Kc4 {[%clk 0:00:09]} 53. Ke3 {[%clk 0:00:02]}  a4 {[%clk 0:00:05]} 54. Ra8 {[%clk 0:00:01]}  Ra2 {[%clk 0:00:04]} 55. f4 {[%clk 0:00:01]}  Kxd5 {[%clk 0:00:04]} 56. f5 {[%clk 0:00:02]}  a3 {[%clk 0:00:05]} 57. Kd3 {[%clk 0:00:02]}  Rf2 {[%clk 0:00:03]} 58. Kc3 {[%clk 0:00:02]}  Rxf5 {[%clk 0:00:03]} 59. Kb4 {[%clk 0:00:02]}  Rf3 {[%clk 0:00:03]} 60. Rd8+ {[%clk 0:00:01]}  Ke4 {[%clk 0:00:03]} 61. Kc4 {[%clk 0:00:02]}  a2 {[%clk 0:00:03]} 62. Re8+ {[%clk 0:00:02]}  Kf4 {[%clk 0:00:04]} 63. Ra8 {[%clk 0:00:03]}  Rf2 {[%clk 0:00:04]} 64. Ra7 {[%clk 0:00:03]}  Ke4 {[%clk 0:00:05]} 65. Ra8 {[%clk 0:00:04]}  Rc2+ {[%clk 0:00:04]} 66. Kb3 {[%clk 0:00:04]}  Kd3 {[%clk 0:00:05]} 67. d5 {[%clk 0:00:03]}  Rh2 {[%clk 0:00:04]} 68. Ra7 {[%clk 0:00:03]}  Kd4 {[%clk 0:00:04]} 69. Ra5 {[%clk 0:00:03]}  Ke5 {[%clk 0:00:04]} 70. Kc3 {[%clk 0:00:02]}  Ke4 {[%clk 0:00:05]} 71. Kc4 {[%clk 0:00:02]}  Rc2+ {[%clk 0:00:05]} 72. Kb3 {[%clk 0:00:02]}  Kd3 {[%clk 0:00:06]} 73. d6 {[%clk 0:00:02]}  cxd6 {[%clk 0:00:05]} 74. Rd5+ {[%clk 0:00:02]}  Ke4 {[%clk 0:00:06]} 75. Ra5 {[%clk 0:00:02]}  Rg2 {[%clk 0:00:06]} 76. Kc3 {[%clk 0:00:01]}  d5 {[%clk 0:00:06]} 77. Ra4+ {[%clk 0:00:02]}  Ke3 {[%clk 0:00:07]} 78. Ra8 {[%clk 0:00:02]}  d4+ {[%clk 0:00:08]} 79. Kc4 {[%clk 0:00:02]}  Rc2+ {[%clk 0:00:08]} 80. Kb3 {[%clk 0:00:01]}  d3 {[%clk 0:00:09]} 81. Rb8 {[%clk 0:00:01]}  a1=Q {[%clk 0:00:09]} 0-1


[Site "https://www.chess.com"]